fUST/lending_fUST_20251230
["ID","MTS","AMOUNT","RATE_DAILY","PERIOD"]
[400048396,1767052245241,-161.18946542,0.00021917,2]
[400048397,1767052245250,-243.7655413,0.00021917,2]
[400048398,1767052245259,-244.19042592,0.00021917,2]
[400048399,1767052245269,-348.06819212,0.00021917,2]
[400048400,1767052245278,-482.00582969,0.00021917,2]
[400048401,1767052245287,-994.31,0.00021917,2]
[400048402,1767052245297,-522.88825418,0.00021917,2]
[400048403,1767052245306,-574.48534634,0.00021917,2]
[400048404,1767052245315,-500.0,0.00021917,2]
[400048405,1767052245325,-439.14977885,0.00021917,2]
[400048406,1767052245334,-500.0,0.00021917,2]
[400048407,1767052245343,-502.66559039,0.00021917,2]
[400048408,1767052245352,-231.78420349,0.00021917,2]
[400048409,1767052245361,-500.0,0.00021917,2]
[400048410,1767052245370,-220.40876257,0.00021917,2]
[400048411,1767052245484,-200.01707268,0.00021917,2]
[400048412,1767052245504,-333.76916282,0.00021917,2]
[400048413,1767052245514,-225.77006582,0.00021917,2]
[400048414,1767052245524,-356.83985831,0.00021917,2]
[400048415,1767052245533,-243.60402505,0.00021917,2]
[400048416,1767052245542,-330.97691951,0.00021917,2]
[400048417,1767052245552,-241.032427,0.00021918,2]
[400048418,1767052245562,-500.0,0.00021986,2]
[400048419,1767052245571,-197.53,0.00022,2]
[400048420,1767052245580,-1207.08,0.00022,7]
[400048422,1767052245590,-12494.59,0.00022,2]
[400048423,1767052245599,-321.5,0.00022011,2]
[400048425,1767052245609,-500.0,0.00022067,2]
[400048427,1767052245619,-1354.10611933,0.00022191,2]
[400048428,1767052245628,-500.0,0.00022191,2]
[400048429,1767052245638,-500.0,0.00022191,2]
[400048430,1767052245647,-500.0,0.00022191,2]
[400048432,1767052245657,-1000.0,0.00022191,2]
[400048433,1767052245666,-500.0,0.00022191,2]
[400048434,1767052245675,-500.0,0.00022191,2]
[400048435,1767052245684,-502.9,0.00022191,2]
[400048436,1767052245694,-500.0,0.00022191,2]
[400048437,1767052245703,-427.64161233,0.00022191,2]
[400048438,1767052245712,-500.0,0.00022191,2]
[400048439,1767052245721,-893.04,0.00022191,2]
[400048440,1767052245730,-4821.6,0.00022191,2]
[400048441,1767052245740,-513.0,0.00022191,2]
[400048442,1767052245749,-500.0,0.00022191,2]
[400048443,1767052245759,-500.0,0.00022191,2]
[400048444,1767052245767,-501.1,0.00022191,2]
[400048445,1767052245777,-500.0,0.00022191,2]
[400048446,1767052245786,-680.8,0.00022191,2]
[400048447,1767052245797,-878.29,0.00022191,2]
[400048448,1767052245806,-418.82110015,0.00022191,2]
[400048449,1767052245815,-500.0,0.00022191,2]
[400048450,1767052245825,-500.0,0.00022191,2]
[400048451,1767052245834,-994.31,0.00022191,2]
[400048452,1767052245843,-500.0,0.00022191,2]
[400048453,1767052245852,-500.0,0.00022191,2]
[400048454,1767052245862,-1000.0,0.00022337,10]
[400048455,1767052245871,-492.0,0.00022337,10]
[400048456,1767052245881,-10000.0,0.00022365,2]
[400048457,1767052245891,-500.0,0.00022446,2]
[400048458,1767052245901,-1354.10611933,0.00022465,2]
[400048459,1767052245910,-500.0,0.00022465,2]
[400048460,1767052245919,-500.0,0.00022465,2]
[400048462,1767052245929,-500.0,0.00022465,2]
[400048464,1767052245938,-1000.0,0.00022465,2]
[400048465,1767052245948,-500.0,0.00022465,2]
[400048467,1767052245958,-500.0,0.00022465,2]
[400048469,1767052245968,-502.9,0.00022465,2]
[400048470,1767052245977,-498.10670326,0.00022465,2]
[400048471,1767052245986,-500.0,0.00022465,2]
[400048472,1767052245995,-893.04,0.00022465,2]
[400048473,1767052246004,-4821.6,0.00022465,2]
[400048474,1767052246013,-500.0,0.00022465,2]
[400048475,1767052246023,-500.0,0.00022465,2]
[400048476,1767052246032,-501.1,0.00022465,2]
[400048477,1767052246042,-500.0,0.00022465,2]
[400048478,1767052246051,-680.8,0.00022465,2]
[400048479,1767052246060,-878.29,0.00022465,2]
[400048480,1767052246069,-500.0,0.00022465,2]
[400048481,1767052246078,-994.31,0.00022465,2]
[400048482,1767052246088,-500.0,0.00022465,2]
[400048483,1767052246098,-500.0,0.0002262,2]
[400048484,1767052246108,-1354.10611933,0.00022739,2]
[400048485,1767052246118,-500.0,0.00022739,2]
[400048486,1767052246127,-500.0,0.00022739,2]
[400048487,1767052246137,-500.0,0.00022739,2]
[400048488,1767052246147,-568.41416315,0.00022739,2]
[400048489,1767052246156,-500.0,0.00022739,2]
[400048490,1767052246165,-500.0,0.00022739,2]
[400048491,1767052246175,-502.9,0.00022739,2]
[400048492,1767052246184,-500.0,0.00022739,2]
[400048493,1767052246194,-893.04,0.00022739,2]
[400048494,1767052246203,-4821.6,0.00022739,2]
[400048495,1767052246213,-500.0,0.00022739,2]
[400048496,1767052246223,-500.0,0.00022739,2]
[400048497,1767052246233,-501.1,0.00022739,2]
[400048498,1767052246242,-500.0,0.00022739,2]
[400048499,1767052246252,-680.8,0.00022739,2]
[400048500,1767052246261,-878.29,0.00022739,2]
[400048501,1767052246271,-500.0,0.00022739,2]
[400048502,1767052246280,-994.31,0.00022739,2]
[400048503,1767052246289,-500.0,0.00022739,2]
[400048505,1767052246300,-500.0,0.0002281,2]
[400048506,1767052246310,-500.0,0.00022923,2]
[400048507,1767052246319,-1354.10611933,0.00023013,2]
[400048508,1767052246329,-500.0,0.00023013,2]
[400048510,1767052246339,-500.0,0.00023013,2]
[400048511,1767052246348,-500.0,0.00023013,2]
[400048512,1767052246357,-500.0,0.00023013,2]
[400048513,1767052246367,-500.0,0.00023013,2]
[400048514,1767052246376,-502.9,0.00023013,2]
[400048516,1767052246386,-500.0,0.00023013,2]
[400048517,1767052246395,-893.04,0.00023013,2]
[400048518,1767052246404,-4821.6,0.00023013,2]
[400048519,1767052246413,-500.0,0.00023013,2]
[400048520,1767052246423,-501.1,0.00023013,2]
[400048521,1767052246432,-500.0,0.00023013,2]
[400048522,1767052246441,-680.8,0.00023013,2]
[400048523,1767052246450,-878.29,0.00023013,2]
[400048524,1767052246460,-500.0,0.00023013,2]
[400048525,1767052246469,-994.31,0.00023013,2]
[400048526,1767052246479,-500.0,0.00023013,2]
[400048527,1767052246487,-321.5,0.0002311,2]
[400048528,1767052246496,-160.2,0.000232,7]
[400048529,1767052246506,-500.0,0.00023227,2]
[400048530,1767052246515,-1354.10611933,0.00023287,2]
[400048531,1767052246525,-500.0,0.00023287,2]
[400048532,1767052246534,-587.13463047,0.00023287,2]
[400048533,1767052246543,-500.0,0.00023287,2]
[400048534,1767052246552,-500.0,0.00023287,2]
[400048535,1767052246561,-500.0,0.00023287,2]
[400048536,1767052246570,-502.9,0.00023287,2]
[400048537,1767052246580,-893.04,0.00023287,2]
[400048538,1767052246589,-4821.6,0.00023287,2]
[400048539,1767052246599,-500.0,0.00023287,2]
[400048540,1767052246608,-501.1,0.00023287,2]
[400048542,1767052246618,-500.0,0.00023287,2]
[400048543,1767052246627,-680.8,0.00023287,2]
[400048544,1767052246636,-878.29,0.00023287,2]
[400048545,1767052246646,-500.0,0.00023287,2]
[400048546,1767052246657,-994.31,0.00023287,2]
[400048547,1767052246666,-500.0,0.00023287,2]
[400048548,1767052246675,-285.0,0.00023299,2]
[400048549,1767052246684,-2000.0,0.00023333,7]
[400048550,1767052246694,-1316.0,0.00023396,2]
[400048551,1767052246703,-1354.10611933,0.00023561,2]
[400048552,1767052246713,-500.0,0.00023561,2]
[400048553,1767052246723,-284.04,0.00023561,2]
[400048554,1767052246732,-500.0,0.00023561,2]
[400048555,1767052246741,-500.0,0.00023561,2]
[400048556,1767052246750,-502.9,0.00023561,2]
[400048557,1767052246764,-893.04,0.00023561,2]
[400048558,1767052246773,-4821.6,0.00023561,2]
[400048559,1767052246783,-500.0,0.00023561,2]
[400048560,1767052246792,-501.1,0.00023561,2]
[400048562,1767052246802,-155.7364656,0.00023561,2]
[400048563,1767052246811,-680.8,0.00023561,2]
[400048564,1767052246820,-878.29,0.00023561,2]
[400048565,1767052246829,-500.0,0.00023561,2]
[400048566,1767052246839,-994.31,0.00023561,2]
[400048567,1767052246848,-500.0,0.00023561,2]
[400048568,1767052246857,-15277.58765547,0.00023641,2]
[400048569,1767052246867,-232013.88013314,0.0002376,2]
[400048570,1767052246876,-1354.10611933,0.00023835,2]
[400048571,1767052246886,-500.0,0.00023835,2]
[400048572,1767052246895,-200.0,0.00023835,2]
[400048573,1767052246905,-200.0,0.00023835,2]
[400048574,1767052246914,-200.0,0.00023835,2]
[400048575,1767052246924,-200.0,0.00023835,2]
[400048576,1767052246934,-200.0,0.00023835,2]
[400048577,1767052246944,-200.0,0.00023835,2]
[400048578,1767052246953,-200.0,0.00023835,2]
[400048579,1767052246963,-200.0,0.00023835,2]
[400048580,1767052246971,-500.0,0.00023835,2]
[400048581,1767052246981,-500.0,0.00023835,2]
[400048582,1767052246990,-502.9,0.00023835,2]
[400048583,1767052246999,-893.04,0.00023835,2]
[400048584,1767052247008,-4821.6,0.00023835,2]
[400048585,1767052247018,-500.0,0.00023835,2]
[400048586,1767052247027,-501.1,0.00023835,2]
[400048587,1767052247036,-680.8,0.00023835,2]
[400048589,1767052247045,-878.29,0.00023835,2]
[400048591,1767052247056,-500.0,0.00023835,2]
[400048593,1767052247065,-994.31,0.00023835,2]
[400048595,1767052247075,-500.0,0.00023835,2]
[400048597,1767052247084,-894.15048972,0.0002389,2]
[400048598,1767052247093,-3224.48975119,0.0002389,2]
[400048599,1767052247103,-1802.09,0.000239,14]
[400048600,1767052247112,-156.97,0.00024,7]
[400048601,1767052247121,-12494.59,0.00024,2]
[400048602,1767052247130,-500.0,0.00024061,2]
[400048603,1767052247140,-1354.10611933,0.00024109,2]
[400048604,1767052247149,-500.0,0.00024109,2]
[400048605,1767052247158,-200.0,0.00024109,2]
[400048606,1767052247167,-500.0,0.00024109,2]
[400048607,1767052247177,-500.0,0.00024109,2]
[400048608,1767052247186,-502.9,0.00024109,2]
[400048609,1767052247195,-893.04,0.00024109,2]
[400048610,1767052247204,-4821.6,0.00024109,2]
[400048611,1767052247214,-500.0,0.00024109,2]
[400048612,1767052247223,-501.1,0.00024109,2]
[400048613,1767052247232,-680.8,0.00024109,2]
[400048614,1767052247241,-878.29,0.00024109,2]
[400048615,1767052247250,-500.0,0.00024109,2]
[400048616,1767052247260,-994.31,0.00024109,2]
[400048617,1767052247269,-500.0,0.00024109,2]
[400048618,1767052247278,-500.0,0.00024129,2]
[400048619,1767052247287,-1207.08,0.000242,7]
[400048620,1767052247296,-321.5,0.00024209,2]
[400048621,1767052247305,-1354.10611933,0.00024383,2]
[400048622,1767052247314,-200.0,0.00024383,2]
[400048623,1767052247323,-500.0,0.00024383,2]
[400048624,1767052247333,-500.0,0.00024383,2]
[400048625,1767052247342,-502.9,0.00024383,2]
[400048626,1767052247351,-893.04,0.00024383,2]
[400048627,1767052247360,-4821.6,0.00024383,2]
[400048628,1767052247370,-500.0,0.00024383,2]
[400048629,1767052247379,-501.1,0.00024383,2]
[400048630,1767052247388,-680.8,0.00024383,2]
[400048631,1767052247398,-878.29,0.00024383,2]
[400048632,1767052247407,-500.0,0.00024383,2]
[400048633,1767052247417,-994.31,0.00024383,2]
[400048634,1767052247426,-500.0,0.00024383,2]
[400048635,1767052247517,-197.53,0.000244,2]
[400048636,1767052247538,-500.0,0.00024423,2]
[400048637,1767052247548,-500.0,0.00024449,2]
[400048638,1767052247558,-236.29060693,0.00024508,2]
[400048639,1767052247568,-237.00042319,0.00024509,2]
[400048640,1767052247578,-236.29131603,0.00024509,2]
[400048641,1767052247587,-946.10758729,0.00024511,2]
[400048642,1767052247597,-1000.0,0.00024571,10]
[400048643,1767052247607,-791.0,0.00024571,10]
[400048644,1767052247616,-47414.86760517,0.000246,3]
[400048645,1767052247626,-1354.10611933,0.00024657,2]
[400048646,1767052247635,-200.0,0.00024657,2]
[400048647,1767052247645,-500.0,0.00024657,2]
[400048648,1767052247654,-500.0,0.00024657,2]
[400048649,1767052247664,-502.9,0.00024657,2]
[400048650,1767052247674,-893.04,0.00024657,2]
[400048651,1767052247683,-4821.6,0.00024657,2]
[400048652,1767052247692,-500.0,0.00024657,2]
[400048653,1767052247701,-501.1,0.00024657,2]
[400048654,1767052247711,-680.8,0.00024657,2]
[400048655,1767052247720,-878.29,0.00024657,2]
[400048656,1767052247729,-500.0,0.00024657,2]
[400048657,1767052247739,-994.31,0.00024657,2]
[400048658,1767052247748,-500.0,0.00024657,2]
[400048659,1767052247760,-380.0,0.00024658,2]
[400048660,1767052247769,-500.0,0.00024745,2]
[400048661,1767052247779,-151.0,0.000248,7]
[400048662,1767052247788,-249.18,0.000248,7]
[400048663,1767052247797,-156.404391,0.000248,7]
[400048664,1767052247806,-151.0,0.000248,7]
[400048665,1767052247816,-151.0,0.000248,7]
[400048666,1767052247825,-151.0,0.000248,7]
[400048667,1767052247834,-151.0,0.000248,7]
[400048668,1767052247844,-223.767963,0.000248,7]
[400048669,1767052247853,-909.63292363,0.00024812,2]
[400048670,1767052247863,-151.0,0.000249,7]
[400048671,1767052247872,-151.0,0.000249,7]
[400048672,1767052247882,-151.0,0.000249,7]
[400048673,1767052247891,-983.498428,0.000249,7]
[400048674,1767052247900,-983.498428,0.000249,7]
[400048675,1767052247909,-983.498428,0.000249,7]
[400048676,1767052247919,-983.498428,0.000249,7]
[400048677,1767052247928,-151.0,0.000249,7]
[400048678,1767052247938,-151.0,0.000249,7]
[400048679,1767052247947,-151.0,0.000249,7]
[400048680,1767052247956,-151.0,0.000249,7]
[400048681,1767052247965,-209.378092,0.000249,7]
[400048682,1767052247975,-209.378092,0.000249,7]
[400048683,1767052247984,-209.378092,0.000249,7]
[400048684,1767052247993,-209.378092,0.000249,7]
[400048685,1767052248003,-172.576134,0.000249,7]
[400048686,1767052248012,-151.0,0.000249,7]
[400048687,1767052248021,-151.0,0.000249,7]
[400048688,1767052248030,-151.0,0.000249,7]
[400048689,1767052248040,-151.0,0.000249,7]
[400048690,1767052248049,-151.0,0.000249,7]
[400048691,1767052248059,-151.0,0.000249,7]
[400048692,1767052248068,-151.0,0.000249,7]
[400048693,1767052248078,-151.0,0.000249,7]
[400048694,1767052248087,-151.0,0.000249,7]
[400048695,1767052248096,-151.0,0.000249,7]
[400048696,1767052248106,-151.0,0.000249,7]
[400048697,1767052248115,-151.0,0.000249,7]
[400048698,1767052248125,-151.0,0.000249,7]
[400048699,1767052248134,-151.0,0.000249,7]
[400048700,1767052248144,-253.301123,0.000249,7]
[400048701,1767052248153,-253.301123,0.000249,7]
[400048702,1767052248163,-151.0,0.000249,7]
[400048703,1767052248172,-253.301123,0.000249,7]
[400048704,1767052248181,-151.0,0.000249,7]
[400048705,1767052248190,-253.301123,0.000249,7]
[400048706,1767052248200,-151.0,0.000249,7]
[400048707,1767052248209,-151.0,0.000249,7]
[400048708,1767052248219,-151.0,0.000249,7]
[400048709,1767052248228,-151.0,0.000249,7]
[400048710,1767052248238,-151.0,0.000249,7]
[400048711,1767052248247,-151.0,0.000249,7]
[400048712,1767052248256,-151.0,0.000249,7]
[400048713,1767052248265,-151.0,0.000249,7]
[400048714,1767052248274,-151.0,0.000249,7]
[400048715,1767052248283,-151.0,0.000249,7]
[400048716,1767052248293,-151.0,0.000249,7]
[400048717,1767052248303,-151.0,0.000249,7]
[400048718,1767052248312,-222.50442,0.000249,7]
[400048719,1767052248321,-151.0,0.000249,7]
[400048720,1767052248330,-151.0,0.000249,7]
[400048721,1767052248339,-151.0,0.000249,7]
[400048722,1767052248348,-151.0,0.000249,7]
[400048723,1767052248358,-151.0,0.000249,7]
[400048724,1767052248367,-151.0,0.000249,7]
[400048725,1767052248376,-152.472212,0.000249,7]
[400048726,1767052248385,-151.0,0.000249,7]
[400048727,1767052248394,-151.0,0.000249,7]
[400048728,1767052248404,-151.0,0.000249,7]
[400048729,1767052248414,-609352.390088,0.000249,2]
[400048730,1767052248424,-151.0,0.000249,7]
[400048731,1767052248433,-262.001019,0.000249,7]
[400048732,1767052248442,-151.0,0.000249,7]
[400048733,1767052248452,-151.2146,0.000249,2]
[400048734,1767052248461,-151.0,0.000249,7]
[400048735,1767052248471,-298.968903,0.000249,7]
[400048736,1767052248480,-220.073602,0.000249,7]
[400048737,1767052248490,-151.0,0.000249,7]
[400048738,1767052248499,-2966.412199,0.000249,7]
[400048739,1767052248508,-151.0,0.000249,7]
[400048740,1767052248517,-2966.412199,0.000249,7]
[400048741,1767052248526,-2966.412199,0.000249,7]
[400048742,1767052248536,-157.035377,0.000249,7]
[400048743,1767052248546,-2966.412199,0.000249,7]
[400048744,1767052248555,-151.0,0.000249,7]
[400048745,1767052248564,-151.0,0.000249,7]
[400048746,1767052248574,-151.0,0.000249,7]
[400048747,1767052248583,-151.0,0.000249,7]
[400048748,1767052248592,-251.745364,0.000249,7]
[400048749,1767052248601,-151.0,0.000249,7]
[400048750,1767052248610,-1354.10611933,0.00024931,2]
[400048751,1767052248619,-151.0,0.00024931,7]
[400048752,1767052248628,-200.0,0.00024931,2]
[400048753,1767052248638,-167.933848,0.00024931,7]
[400048754,1767052248647,-186.30778711,0.00024931,2]
[400048755,1767052248657,-500.0,0.00024931,2]
[400048756,1767052248666,-502.9,0.00024931,2]
[400048757,1767052248675,-893.04,0.00024931,2]
[400048758,1767052248684,-4821.6,0.00024931,2]
[400048759,1767052248694,-500.0,0.00024931,2]
[400048760,1767052248703,-501.1,0.00024931,2]
[400048761,1767052248713,-680.8,0.00024931,2]
[400048762,1767052248723,-878.29,0.00024931,2]
[400048763,1767052248733,-500.0,0.00024931,2]
[400048764,1767052248742,-994.31,0.00024931,2]
[400048765,1767052248751,-500.0,0.00024931,2]
[400048766,1767052248764,-188.0,0.00024932,7]
[400048767,1767052248773,-2000.0,0.00025,7]
[400048768,1767052248782,-188.0,0.00025,7]
[400048769,1767052248791,-161.07266942,0.00025069,2]
[400048770,1767052248800,-500.0,0.00025069,2]
[400048771,1767052248809,-3697.08941198,0.00025148,2]
[400048772,1767052248819,-168.0,0.00025178,15]
[400048773,1767052248828,-1354.10611933,0.00025205,2]
[400048774,1767052248839,-200.0,0.00025205,2]
[400048775,1767052248849,-500.0,0.00025205,2]
[400048776,1767052248858,-502.9,0.00025205,2]
[400048777,1767052248868,-893.04,0.00025205,2]
[400048778,1767052248878,-4821.6,0.00025205,2]
[400048779,1767052248887,-500.0,0.00025205,2]
[400048780,1767052248896,-501.1,0.00025205,2]
[400048781,1767052248906,-680.8,0.00025205,2]
[400048782,1767052248915,-878.29,0.00025205,2]
[400048783,1767052248925,-500.0,0.00025205,2]
[400048784,1767052248935,-994.31,0.00025205,2]
[400048785,1767052248943,-500.0,0.00025205,2]
[400048786,1767052248952,-250.0,0.00025205,2]
[400048787,1767052248963,-500.0,0.00025206,2]
[400048788,1767052248972,-312.0,0.00025299,2]
[400048789,1767052248981,-321.5,0.00025308,2]
[400048790,1767052248990,-241.032427,0.00025342,2]
[400048791,1767052249000,-500.0,0.00025343,2]
[400048792,1767052249009,-15277.58765547,0.00025372,2]
[400048793,1767052249018,-1354.10611933,0.00025479,2]
[400048794,1767052249028,-200.0,0.00025479,2]
[400048795,1767052249038,-500.0,0.00025479,2]
[400048796,1767052249047,-502.9,0.00025479,2]
[400048797,1767052249057,-893.04,0.00025479,2]
[400048798,1767052249067,-4821.6,0.00025479,2]
[400048799,1767052249076,-500.0,0.00025479,2]
[400048800,1767052249085,-501.1,0.00025479,2]
[400048801,1767052249095,-680.8,0.00025479,2]
[400048802,1767052249108,-878.29,0.00025479,2]
[400048803,1767052249118,-553.92230975,0.00025479,2]
[400048804,1767052249127,-994.31,0.00025479,2]
[400048805,1767052249136,-500.0,0.00025479,2]
[400048806,1767052249145,-500.0,0.0002548,2]
[400048807,1767052249155,-500.0,0.00025617,2]
[400048808,1767052249164,-1802.09,0.000257,14]
[400048809,1767052249173,-1354.10611933,0.00025753,2]
[400048810,1767052249182,-310.65116714,0.00025753,2]
[400048811,1767052249191,-575.42732568,0.00025753,2]
[400048812,1767052249200,-502.9,0.00025753,2]
[400048813,1767052249210,-893.04,0.00025753,2]
[400048814,1767052249219,-4821.6,0.00025753,2]
[400048815,1767052249230,-500.0,0.00025753,2]
[400048816,1767052249238,-501.1,0.00025753,2]
[400048817,1767052249247,-680.8,0.00025753,2]
[400048818,1767052249257,-878.29,0.00025753,2]
[400048819,1767052249266,-994.31,0.00025753,2]
[400048820,1767052249275,-500.0,0.00025753,2]
[400048821,1767052249285,-350.0,0.00025753,2]
[400048822,1767052249294,-500.0,0.00025754,2]
[400048823,1767052249303,-12494.59,0.000258,2]
[400048824,1767052249313,-188.0,0.0002589,7]
[400048825,1767052249406,-500.0,0.00025891,2]
[400048826,1767052249416,-1207.08,0.000259,7]
[400048827,1767052249426,-1354.10611933,0.00026027,2]
[400048828,1767052249435,-502.9,0.00026027,2]
[400048829,1767052249446,-893.04,0.00026027,2]
[400048830,1767052249455,-4821.6,0.00026027,2]
[400048831,1767052249465,-212.18,0.00026027,2]
[400048832,1767052249474,-501.1,0.00026027,2]
[400048833,1767052249484,-680.8,0.00026027,2]
[400048834,1767052249494,-878.29,0.00026027,2]
[400048835,1767052249504,-994.31,0.00026027,2]
[400048836,1767052249513,-500.0,0.00026027,2]
[400048837,1767052249523,-500.0,0.00026028,2]
[400048838,1767052249533,-500.0,0.00026165,2]
[400048839,1767052249542,-1354.10611933,0.00026301,2]
[400048840,1767052249556,-502.9,0.00026301,2]
[400048841,1767052249566,-893.04,0.00026301,2]
[400048842,1767052249576,-4821.6,0.00026301,2]
[400048843,1767052249586,-501.1,0.00026301,2]
[400048844,1767052249596,-680.8,0.00026301,2]
[400048845,1767052249606,-878.29,0.00026301,2]
[400048846,1767052249615,-994.31,0.00026301,2]
[400048847,1767052249625,-500.0,0.00026301,2]
[400048848,1767052249635,-450.0,0.00026301,2]
[400048849,1767052249644,-469.39726825,0.00026302,2]
[400048850,1767052249654,-197.53,0.000264,2]
[400048851,1767052249663,-321.5,0.00026407,2]
[400048852,1767052249672,-1354.10611933,0.00026575,2]
[400048853,1767052249682,-502.9,0.00026575,2]
[400048854,1767052249691,-893.04,0.00026575,2]
[400048855,1767052249701,-4821.6,0.00026575,2]
[400048856,1767052249710,-501.1,0.00026575,2]
[400048857,1767052249719,-680.8,0.00026575,2]
[400048858,1767052249729,-878.29,0.00026575,2]
[400048859,1767052249739,-994.31,0.00026575,2]
[400048860,1767052249748,-500.0,0.00026575,2]
[400048861,1767052249758,-2000.0,0.00026667,7]
[400048862,1767052249767,-551.428007,0.00026676,2]
[400048863,1767052249776,-1354.10611933,0.00026849,2]
[400048864,1767052249787,-502.9,0.00026849,2]
[400048865,1767052249796,-893.04,0.00026849,2]
[400048866,1767052249806,-4821.6,0.00026849,2]
[400048867,1767052249815,-501.1,0.00026849,2]
[400048868,1767052249825,-680.8,0.00026849,2]
[400048869,1767052249834,-878.29,0.00026849,2]
[400048870,1767052249844,-994.31,0.00026849,2]
[400048871,1767052249853,-500.0,0.00026849,2]
[400048872,1767052249862,-550.0,0.00026849,2]
[400048873,1767052249872,-1024.67436269,0.00027,2]
[400048874,1767052249881,-1000.0,0.00027028,30]
[400048875,1767052249891,-1000.0,0.00027028,30]
[400048876,1767052249900,-1183.0,0.00027067,2]
[400048877,1767052249910,-160.2,0.000271,7]
[400048878,1767052249920,-15277.58765547,0.00027102,2]
[400048879,1767052249929,-1354.10611933,0.00027123,2]
[400048880,1767052249939,-502.9,0.00027123,2]
[400048881,1767052249948,-893.04,0.00027123,2]
[400048882,1767052249958,-4821.6,0.00027123,2]
[400048883,1767052249968,-501.1,0.00027123,2]
[400048884,1767052249978,-680.8,0.00027123,2]
[400048885,1767052249987,-878.29,0.00027123,2]
[400048886,1767052249997,-994.31,0.00027123,2]
[400048887,1767052250006,-500.0,0.00027123,2]
[400048888,1767052250016,-189.0,0.00027185,7]
[400048889,1767052250025,-1183.0,0.00027212,2]
[400048890,1767052250035,-1185.0,0.0002723,7]
[400048891,1767052250044,-179.29454204,0.00027256,2]
[400048892,1767052250054,-717.17816815,0.00027256,2]
[400048893,1767052250063,-1613.65087833,0.00027256,2]
[400048894,1767052250072,-2868.71267259,0.00027256,2]
[400048895,1767052250082,-4482.36355092,0.00027256,2]
[400048896,1767052250091,-339.0,0.00027299,2]
[400048897,1767052250101,-156.97,0.000273,7]
[400048898,1767052250111,-1354.10611933,0.00027397,2]
[400048899,1767052250120,-502.9,0.00027397,2]
[400048900,1767052250130,-893.04,0.00027397,2]
[400048901,1767052250140,-4821.6,0.00027397,2]
[400048902,1767052250150,-501.1,0.00027397,2]
[400048903,1767052250160,-199.19952446,0.00027397,2]
[400048904,1767052250170,-680.8,0.00027397,2]
[400048905,1767052250181,-878.29,0.00027397,2]
[400048906,1767052250190,-994.31,0.00027397,2]
[400048907,1767052250199,-500.0,0.00027397,2]
[400048908,1767052250209,-223.7001258,0.00027397,2]
[400048909,1767052250218,-650.0,0.00027397,5]
[400048910,1767052250228,-300.0,0.00027397,2]
[400048911,1767052250238,-300.0,0.00027397,2]
[400048912,1767052250248,-300.0,0.00027397,2]
[400048913,1767052250257,-300.0,0.00027397,2]